[Event "Titled Tuesday Blitz May 16 Late 2023"]
[White "Ward, Ieuan C"]
[Black "Stork, Oliver"]
[WhiteFideId "406627"]
[BlackFideId "12955728"]
[WhiteElo "2292"]
[BlackElo "2239"]
[Result "1/2-1/2"]
[Round "03"]
[TimeControl "180+2"]
[Date "2023.05.16"]
[WhiteClock "0:00:06"]
[BlackClock "0:00:11"]

1. d4 {[%clk 0:03:00]}  Nf6 {[%clk 0:02:58]} 2. c4 {[%clk 0:03:01]}  e6 {[%clk 0:02:58]} 3. Nf3 {[%clk 0:03:00]}  d5 {[%clk 0:02:57]} 4. Nc3 {[%clk 0:02:59]}  Bb4 {[%clk 0:02:57]} 5. Bg5 {[%clk 0:02:58]}  h6 {[%clk 0:02:55]} 6. Bxf6 {[%clk 0:02:57]}  Qxf6 {[%clk 0:02:54]} 7. e3 {[%clk 0:02:55]}  O-O {[%clk 0:02:52]} 8. Bd3 {[%clk 0:02:53]}  dxc4 {[%clk 0:02:45]} 9. Bxc4 {[%clk 0:02:54]}  c5 {[%clk 0:02:45]} 10. O-O {[%clk 0:02:51]}  Nc6 {[%clk 0:02:30]} 11. Ne4 {[%clk 0:02:48]}  Qf5 {[%clk 0:02:24]} 12. Nd6 {[%clk 0:02:17]}  Qf6 {[%clk 0:02:15]} 13. a3 {[%clk 0:02:11]}  Ba5 {[%clk 0:02:09]} 14. dxc5 {[%clk 0:02:08]}  Qxb2 {[%clk 0:02:08]} 15. Qb1 {[%clk 0:01:56]}  Qf6 {[%clk 0:01:59]} 16. Nxc8 {[%clk 0:01:51]}  Raxc8 {[%clk 0:01:34]} 17. Qxb7 {[%clk 0:01:50]}  Ne5 {[%clk 0:01:32]} 18. Nxe5 {[%clk 0:01:28]}  Qxe5 {[%clk 0:01:33]} 19. c6 {[%clk 0:01:17]}  Rc7 {[%clk 0:01:28]} 20. Qb5 {[%clk 0:01:12]}  Qxb5 {[%clk 0:01:06]} 21. Bxb5 {[%clk 0:01:13]}  Rb8 {[%clk 0:01:06]} 22. Rab1 {[%clk 0:01:08]}  Kf8 {[%clk 0:01:00]} 23. Ba4 {[%clk 0:01:07]}  Rb6 {[%clk 0:00:54]} 24. Rxb6 {[%clk 0:01:04]}  Bxb6 {[%clk 0:00:55]} 25. Rd1 {[%clk 0:00:52]}  Ke7 {[%clk 0:00:54]} 26. Rd7+ {[%clk 0:00:50]}  Rxd7 {[%clk 0:00:54]} 27. cxd7 {[%clk 0:00:51]}  Bc5 {[%clk 0:00:55]} 28. Kf1 {[%clk 0:00:46]}  Bxa3 {[%clk 0:00:55]} 29. Ke2 {[%clk 0:00:46]}  Bd6 {[%clk 0:00:55]} 30. h3 {[%clk 0:00:46]}  a5 {[%clk 0:00:53]} 31. Kd3 {[%clk 0:00:46]}  Bb4 {[%clk 0:00:51]} 32. Kc4 {[%clk 0:00:44]}  Kd8 {[%clk 0:00:51]} 33. e4 {[%clk 0:00:42]}  e5 {[%clk 0:00:47]} 34. Kd5 {[%clk 0:00:41]}  Bc3 {[%clk 0:00:46]} 35. Kd6 {[%clk 0:00:38]}  Bd4 {[%clk 0:00:46]} 36. f3 {[%clk 0:00:38]}  g5 {[%clk 0:00:44]} 37. Bb3 {[%clk 0:00:37]}  f6 {[%clk 0:00:44]} 38. Ba4 {[%clk 0:00:36]}  Be3 {[%clk 0:00:36]} 39. Ke6 {[%clk 0:00:36]}  Bf4 {[%clk 0:00:34]} 40. Kxf6 {[%clk 0:00:35]}  h5 {[%clk 0:00:34]} 41. Kg6 {[%clk 0:00:33]}  h4 {[%clk 0:00:35]} 42. Kf5 {[%clk 0:00:33]}  Ke7 {[%clk 0:00:34]} 43. Bb5 {[%clk 0:00:30]}  Kd8 {[%clk 0:00:34]} 44. Ke6 {[%clk 0:00:29]}  Bg3 {[%clk 0:00:34]} 45. Kd6 {[%clk 0:00:28]}  Bf4 {[%clk 0:00:34]} 46. Ba4 {[%clk 0:00:27]}  Bg3 {[%clk 0:00:34]} 47. Kd5 {[%clk 0:00:27]}  Bf4 {[%clk 0:00:34]} 48. Kc6 {[%clk 0:00:27]}  Bg3 {[%clk 0:00:34]} 49. Kb5 {[%clk 0:00:26]}  Be1 {[%clk 0:00:34]} 50. Kc4 {[%clk 0:00:27]}  Bd2 {[%clk 0:00:34]} 51. Kd3 {[%clk 0:00:25]}  Bf4 {[%clk 0:00:34]} 52. Kc4 {[%clk 0:00:26]}  Bg3 {[%clk 0:00:34]} 53. Kd5 {[%clk 0:00:25]}  Bf4 {[%clk 0:00:34]} 54. Kd6 {[%clk 0:00:25]}  Bg3 {[%clk 0:00:34]} 55. Ke6 {[%clk 0:00:25]}  Bf4 {[%clk 0:00:34]} 56. Kf5 {[%clk 0:00:25]}  Ke7 {[%clk 0:00:33]} 57. Kg6 {[%clk 0:00:24]}  Kd8 {[%clk 0:00:33]} 58. Kf6 {[%clk 0:00:25]}  Bg3 {[%clk 0:00:28]} 59. Kxg5 {[%clk 0:00:24]}  Ke7 {[%clk 0:00:28]} 60. Kg4 {[%clk 0:00:23]}  Kd8 {[%clk 0:00:27]} 61. Kf5 {[%clk 0:00:23]}  Ke7 {[%clk 0:00:27]} 62. Kg4 {[%clk 0:00:24]}  Kd8 {[%clk 0:00:27]} 63. f4 {[%clk 0:00:24]}  exf4 {[%clk 0:00:25]} 64. Kf5 {[%clk 0:00:20]}  Ke7 {[%clk 0:00:25]} 65. e5 {[%clk 0:00:19]}  Bh2 {[%clk 0:00:21]} 66. e6 {[%clk 0:00:10]}  Bg1 {[%clk 0:00:15]} 67. Kxf4 {[%clk 0:00:09]}  Bh2+ {[%clk 0:00:14]} 68. Kf5 {[%clk 0:00:09]}  Bg3 {[%clk 0:00:14]} 69. Kg4 {[%clk 0:00:07]}  Kd8 {[%clk 0:00:13]} 70. Kg5 {[%clk 0:00:07]}  Ke7 {[%clk 0:00:14]} 71. Kf5 {[%clk 0:00:07]}  Bf2 {[%clk 0:00:13]} 72. Ke4 {[%clk 0:00:06]}  Bg3 {[%clk 0:00:13]} 73. Ke3 {[%clk 0:00:06]}  Be1 {[%clk 0:00:12]} 74. g4 {[%clk 0:00:05]}  hxg3 {[%clk 0:00:12]} 75. Kf3 {[%clk 0:00:05]}  Bc3 {[%clk 0:00:08]} 76. h4 {[%clk 0:00:05]}  Bf6 {[%clk 0:00:08]} 77. h5 {[%clk 0:00:05]}  Kxe6 {[%clk 0:00:09]} 78. Kxg3 {[%clk 0:00:05]}  Kf7 {[%clk 0:00:09]} 79. Kg4 {[%clk 0:00:05]}  Kg7 {[%clk 0:00:09]} 80. Kf5 {[%clk 0:00:05]}  Bd8 {[%clk 0:00:09]} 81. Ke6 {[%clk 0:00:05]}  Kh6 {[%clk 0:00:10]} 82. Bd1 {[%clk 0:00:04]}  a4 {[%clk 0:00:09]} 83. Bxa4 {[%clk 0:00:03]}  Kxh5 {[%clk 0:00:09]} 84. Kf7 {[%clk 0:00:04]}  Bb6 {[%clk 0:00:10]} 85. Ke8 {[%clk 0:00:05]}  Ba5 {[%clk 0:00:10]} 86. d8=Q {[%clk 0:00:06]}  Bxd8 {[%clk 0:00:11]} 1/2-1/2


[Site "https://www.chess.com"]

[Event "Titled Tuesday Blitz May 16 Late 2023"]
[White "Vifleemskaia, Svetlana"]
[Black "Martic, Ivan"]
[WhiteFideId "4129490"]
[BlackFideId "929301"]
[WhiteElo "1930"]
[BlackElo "2360"]
[Result "0-1"]
[Round "03"]
[TimeControl "180+2"]
[Date "2023.05.16"]
[WhiteClock "0:00:00"]
[BlackClock "0:01:40"]

1. d4 {[%clk 0:03:00]}  d6 {[%clk 0:02:59]} 2. c4 {[%clk 0:03:00]}  g6 {[%clk 0:02:59]} 3. e4 {[%clk 0:03:00]}  Bg7 {[%clk 0:03:00]} 4. Nc3 {[%clk 0:03:01]}  Nf6 {[%clk 0:03:01]} 5. Nge2 {[%clk 0:02:59]}  O-O {[%clk 0:03:00]} 6. Ng3 {[%clk 0:03:00]}  c5 {[%clk 0:03:00]} 7. Bd3 {[%clk 0:03:00]}  cxd4 {[%clk 0:02:59]} 8. Nd5 {[%clk 0:02:58]}  e6 {[%clk 0:02:56]} 9. Nxf6+ {[%clk 0:02:57]}  Bxf6 {[%clk 0:02:56]} 10. O-O {[%clk 0:02:57]}  Nc6 {[%clk 0:02:56]} 11. f4 {[%clk 0:02:57]}  Re8 {[%clk 0:02:55]} 12. a3 {[%clk 0:02:51]}  a5 {[%clk 0:02:54]} 13. Bd2 {[%clk 0:02:50]}  Bg7 {[%clk 0:02:53]} 14. b4 {[%clk 0:02:49]}  axb4 {[%clk 0:02:50]} 15. axb4 {[%clk 0:02:50]}  Rxa1 {[%clk 0:02:50]} 16. Qxa1 {[%clk 0:02:50]}  h5 {[%clk 0:02:46]} 17. b5 {[%clk 0:02:43]}  Ne7 {[%clk 0:02:44]} 18. Qa7 {[%clk 0:02:30]}  h4 {[%clk 0:02:43]} 19. Ne2 {[%clk 0:02:29]}  d5 {[%clk 0:02:37]} 20. cxd5 {[%clk 0:02:20]}  exd5 {[%clk 0:02:38]} 21. e5 {[%clk 0:02:12]}  h3 {[%clk 0:02:35]} 22. Nxd4 {[%clk 0:02:07]}  hxg2 {[%clk 0:02:35]} 23. Kxg2 {[%clk 0:02:08]}  Qd7 {[%clk 0:02:33]} 24. e6 {[%clk 0:01:37]}  fxe6 {[%clk 0:02:32]} 25. Nf3 {[%clk 0:01:37]}  Nf5 {[%clk 0:02:24]} 26. Re1 {[%clk 0:01:24]}  Qd6 {[%clk 0:02:13]} 27. Ne5 {[%clk 0:01:06]}  g5 {[%clk 0:02:08]} 28. Bxf5 {[%clk 0:00:32]}  exf5 {[%clk 0:02:09]} 29. Nc4 {[%clk 0:00:28]}  Qf8 {[%clk 0:02:04]} 30. Ne5 {[%clk 0:00:17]}  Bxe5 {[%clk 0:01:59]} 31. fxe5 {[%clk 0:00:14]}  f4 {[%clk 0:01:59]} 32. Qb6 {[%clk 0:00:12]}  Qf5 {[%clk 0:01:56]} 33. Qh6 {[%clk 0:00:09]}  Re6 {[%clk 0:01:50]} 34. Qh5 {[%clk 0:00:07]}  Qd3 {[%clk 0:01:49]} 35. Qxg5+ {[%clk 0:00:03]}  Rg6 {[%clk 0:01:49]} 36. Bxf4 {[%clk 0:00:01]}  Rxg5+ {[%clk 0:01:44]} 37. Bxg5 {[%clk 0:00:02]}  Bh3+ {[%clk 0:01:40]} 38. Kf2 {[%clk 0:00:00]}  Qf5+ {[%clk 0:01:40]} 0-1


[Site "https://www.chess.com"]

[Event "Titled Tuesday Blitz May 16 Late 2023"]
[White "Liu, Eric"]
[Black "Smiechu"]
[WhiteFideId "30960240"]
[WhiteElo "2094"]
[BlackElo "2286"]
[Result "1-0"]
[Round "03"]
[TimeControl "180+2"]
[Date "2023.05.16"]
[WhiteClock "0:00:57"]
[BlackClock "0:01:29"]

1. b3 {[%clk 0:03:00]}  e5 {[%clk 0:02:59]} 2. Bb2 {[%clk 0:03:01]}  Nc6 {[%clk 0:02:59]} 3. e3 {[%clk 0:03:00]}  Nf6 {[%clk 0:02:59]} 4. h4 {[%clk 0:03:00]}  d5 {[%clk 0:02:56]} 5. h5 {[%clk 0:03:01]}  h6 {[%clk 0:02:56]} 6. Be2 {[%clk 0:03:00]}  Bd6 {[%clk 0:02:56]} 7. d4 {[%clk 0:03:01]}  e4 {[%clk 0:02:56]} 8. c4 {[%clk 0:03:01]}  Be6 {[%clk 0:02:51]} 9. Nc3 {[%clk 0:02:57]}  Qd7 {[%clk 0:02:20]} 10. Rh4 {[%clk 0:02:17]}  Be7 {[%clk 0:02:13]} 11. cxd5 {[%clk 0:01:58]}  Bxd5 {[%clk 0:02:11]} 12. Rf4 {[%clk 0:01:53]}  O-O-O {[%clk 0:02:03]} 13. Nxd5 {[%clk 0:01:15]}  Nxd5 {[%clk 0:01:55]} 14. Bg4 {[%clk 0:01:12]}  Nxf4 {[%clk 0:01:40]} 15. Bxd7+ {[%clk 0:01:13]}  Rxd7 {[%clk 0:01:40]} 16. exf4 {[%clk 0:01:13]}  Bb4+ {[%clk 0:01:39]} 17. Kf1 {[%clk 0:01:08]}  Re8 {[%clk 0:01:38]} 18. a3 {[%clk 0:01:06]}  Bd6 {[%clk 0:01:38]} 19. Qg4 {[%clk 0:01:05]}  Re6 {[%clk 0:01:33]} 20. d5 {[%clk 0:00:57]}  f5 {[%clk 0:01:29]} 1-0


[Site "https://www.chess.com"]

[Event "Titled Tuesday Blitz May 16 Late 2023"]
[White "Bashkansky, Ethan"]
[Black "Mikhalsky, Vladimir"]
[WhiteFideId "2071533"]
[BlackFideId "14144352"]
[WhiteElo "2280"]
[BlackElo "2236"]
[Result "1-0"]
[Round "03"]
[TimeControl "180+2"]
[Date "2023.05.16"]
[WhiteClock "0:00:09"]
[BlackClock "0:00:01"]

1. d4 {[%clk 0:03:00]}  Nf6 {[%clk 0:02:57]} 2. c4 {[%clk 0:03:01]}  g6 {[%clk 0:02:56]} 3. Nc3 {[%clk 0:03:01]}  Bg7 {[%clk 0:02:51]} 4. e4 {[%clk 0:03:01]}  O-O {[%clk 0:02:50]} 5. Be3 {[%clk 0:03:00]}  d6 {[%clk 0:02:51]} 6. f3 {[%clk 0:03:00]}  a6 {[%clk 0:02:49]} 7. Nge2 {[%clk 0:02:58]}  Nc6 {[%clk 0:02:49]} 8. Nc1 {[%clk 0:02:58]}  e5 {[%clk 0:02:43]} 9. d5 {[%clk 0:02:59]}  Nd4 {[%clk 0:02:43]} 10. Nb3 {[%clk 0:02:59]}  Nxb3 {[%clk 0:02:43]} 11. axb3 {[%clk 0:03:00]}  Nd7 {[%clk 0:02:35]} 12. Bd3 {[%clk 0:02:58]}  Nc5 {[%clk 0:02:32]} 13. Bc2 {[%clk 0:02:56]}  f5 {[%clk 0:02:29]} 14. exf5 {[%clk 0:02:54]}  gxf5 {[%clk 0:02:26]} 15. O-O {[%clk 0:02:48]}  Kh8 {[%clk 0:02:17]} 16. Kh1 {[%clk 0:02:42]}  Qh4 {[%clk 0:02:11]} 17. Qd2 {[%clk 0:02:22]}  a5 {[%clk 0:01:57]} 18. b4 {[%clk 0:02:15]}  Nd7 {[%clk 0:01:39]} 19. Rxa5 {[%clk 0:02:12]}  Rxa5 {[%clk 0:01:39]} 20. bxa5 {[%clk 0:02:13]}  Qxc4 {[%clk 0:01:38]} 21. Bd3 {[%clk 0:01:56]}  Qb3 {[%clk 0:01:20]} 22. Qc2 {[%clk 0:01:50]}  Qb4 {[%clk 0:01:02]} 23. Bxf5 {[%clk 0:01:38]}  Qxa5 {[%clk 0:00:52]} 24. Bxh7 {[%clk 0:01:37]}  Nf6 {[%clk 0:00:51]} 25. Be4 {[%clk 0:01:14]}  Nxe4 {[%clk 0:00:50]} 26. Nxe4 {[%clk 0:01:04]}  Qxd5 {[%clk 0:00:47]} 27. Qxc7 {[%clk 0:01:04]}  Qd3 {[%clk 0:00:26]} 28. Re1 {[%clk 0:00:54]}  d5 {[%clk 0:00:26]} 29. Nd6 {[%clk 0:00:46]}  d4 {[%clk 0:00:20]} 30. Bg1 {[%clk 0:00:43]}  Bh3 {[%clk 0:00:17]} 31. Nf7+ {[%clk 0:00:37]}  Kg8 {[%clk 0:00:16]} 32. Ng5 {[%clk 0:00:37]}  Bxg2+ {[%clk 0:00:14]} 33. Kxg2 {[%clk 0:00:38]}  Qd2+ {[%clk 0:00:15]} 34. Bf2 {[%clk 0:00:38]}  Qxg5+ {[%clk 0:00:14]} 35. Bg3 {[%clk 0:00:32]}  Qd2+ {[%clk 0:00:13]} 36. Bf2 {[%clk 0:00:30]}  d3 {[%clk 0:00:13]} 37. Qc4+ {[%clk 0:00:28]}  Rf7 {[%clk 0:00:13]} 38. Re3 {[%clk 0:00:20]}  Qc2 {[%clk 0:00:11]} 39. b3 {[%clk 0:00:18]}  Qxc4 {[%clk 0:00:10]} 40. bxc4 {[%clk 0:00:19]}  Rd7 {[%clk 0:00:10]} 41. Re1 {[%clk 0:00:19]}  Bh6 {[%clk 0:00:10]} 42. Kf1 {[%clk 0:00:17]}  d2 {[%clk 0:00:09]} 43. Rd1 {[%clk 0:00:18]}  Rc7 {[%clk 0:00:10]} 44. Ke2 {[%clk 0:00:17]}  Rxc4 {[%clk 0:00:10]} 45. Be3 {[%clk 0:00:18]}  Rh4 {[%clk 0:00:07]} 46. Rh1 {[%clk 0:00:13]}  Bxe3 {[%clk 0:00:06]} 47. Kxe3 {[%clk 0:00:13]}  Rxh2 {[%clk 0:00:06]} 48. Rd1 {[%clk 0:00:10]}  Kf7 {[%clk 0:00:07]} 49. f4 {[%clk 0:00:09]}  exf4+ {[%clk 0:00:06]} 50. Kxf4 {[%clk 0:00:10]}  Ke6 {[%clk 0:00:07]} 51. Kg3 {[%clk 0:00:11]}  Re2 {[%clk 0:00:06]} 52. Kf3 {[%clk 0:00:11]}  Re5 {[%clk 0:00:06]} 53. Rxd2 {[%clk 0:00:11]}  Rd5 {[%clk 0:00:05]} 54. Rb2 {[%clk 0:00:06]}  b5 {[%clk 0:00:05]} 55. Ke4 {[%clk 0:00:07]}  Kd6 {[%clk 0:00:05]} 56. Rb1 {[%clk 0:00:06]}  Kc6 {[%clk 0:00:04]} 57. Rc1+ {[%clk 0:00:04]}  Rc5 {[%clk 0:00:04]} 58. Rb1 {[%clk 0:00:05]}  Rc4+ {[%clk 0:00:04]} 59. Kd3 {[%clk 0:00:05]}  Kc5 {[%clk 0:00:04]} 60. Rb2 {[%clk 0:00:05]}  b4 {[%clk 0:00:04]} 61. Rb1 {[%clk 0:00:06]}  Rh4 {[%clk 0:00:04]} 62. Rg1 {[%clk 0:00:05]}  Rh3+ {[%clk 0:00:03]} 63. Kc2 {[%clk 0:00:06]}  Rh4 {[%clk 0:00:02]} 64. Rg3 {[%clk 0:00:05]}  Kc4 {[%clk 0:00:02]} 65. Kb2 {[%clk 0:00:05]}  Rh2+ {[%clk 0:00:02]} 66. Kb1 {[%clk 0:00:06]}  Kb5 {[%clk 0:00:02]} 67. Rg5+ {[%clk 0:00:05]}  Ka4 {[%clk 0:00:03]} 68. Rg3 {[%clk 0:00:06]}  Rg2 {[%clk 0:00:02]} 69. Rxg2 {[%clk 0:00:06]}  Ka3 {[%clk 0:00:02]} 70. Rb2 {[%clk 0:00:04]}  b3 {[%clk 0:00:02]} 71. Rg2 {[%clk 0:00:05]}  Ka4 {[%clk 0:00:02]} 72. Kb2 {[%clk 0:00:06]}  Kb4 {[%clk 0:00:02]} 73. Rg3 {[%clk 0:00:07]}  Kc5 {[%clk 0:00:02]} 74. Rxb3 {[%clk 0:00:07]}  Kd4 {[%clk 0:00:03]} 75. Rc3 {[%clk 0:00:08]}  Ke4 {[%clk 0:00:01]} 76. Kb3 {[%clk 0:00:09]} 1-0


[Site "https://www.chess.com"]

[Event "Titled Tuesday Blitz May 16 Late 2023"]
[White "Pires, Marcos Vinicius Torsani"]
[Black "ibove"]
[WhiteFideId "2118939"]
[WhiteElo "2273"]
[BlackElo "2274"]
[Result "0-1"]
[Round "03"]
[TimeControl "180+2"]
[Date "2023.05.16"]
[WhiteClock "0:00:09"]
[BlackClock "0:00:31"]

1. d4 {[%clk 0:03:00]}  Nf6 {[%clk 0:02:59]} 2. Bf4 {[%clk 0:02:56]}  c5 {[%clk 0:02:55]} 3. e3 {[%clk 0:02:54]}  d5 {[%clk 0:02:47]} 4. c3 {[%clk 0:02:49]}  Qb6 {[%clk 0:02:45]} 5. Qb3 {[%clk 0:02:47]}  c4 {[%clk 0:02:42]} 6. Qc2 {[%clk 0:02:47]}  Bf5 {[%clk 0:02:35]} 7. Qc1 {[%clk 0:02:47]}  e6 {[%clk 0:02:30]} 8. Nd2 {[%clk 0:02:45]}  Nbd7 {[%clk 0:02:30]} 9. h3 {[%clk 0:02:45]}  Bd6 {[%clk 0:02:24]} 10. Ne2 {[%clk 0:02:35]}  O-O {[%clk 0:02:18]} 11. Bxd6 {[%clk 0:02:24]}  Qxd6 {[%clk 0:02:17]} 12. Nf4 {[%clk 0:02:20]}  b5 {[%clk 0:02:11]} 13. Be2 {[%clk 0:02:14]}  b4 {[%clk 0:01:34]} 14. O-O {[%clk 0:02:13]}  Rab8 {[%clk 0:01:24]} 15. Nf3 {[%clk 0:01:49]}  bxc3 {[%clk 0:01:18]} 16. bxc3 {[%clk 0:01:49]}  Qb6 {[%clk 0:01:14]} 17. Nh4 {[%clk 0:01:42]}  Be4 {[%clk 0:01:10]} 18. f3 {[%clk 0:01:40]}  Bg6 {[%clk 0:01:09]} 19. Nhxg6 {[%clk 0:01:39]}  hxg6 {[%clk 0:01:10]} 20. Rb1 {[%clk 0:01:25]}  Qxb1 {[%clk 0:01:05]} 21. Qxb1 {[%clk 0:01:25]}  Rxb1 {[%clk 0:01:03]} 22. Rxb1 {[%clk 0:01:26]}  g5 {[%clk 0:01:03]} 23. Rb7 {[%clk 0:00:50]}  gxf4 {[%clk 0:01:01]} 24. exf4 {[%clk 0:00:51]}  Rb8 {[%clk 0:00:53]} 25. Rxa7 {[%clk 0:00:50]}  g6 {[%clk 0:00:53]} 26. g4 {[%clk 0:00:46]}  Rb2 {[%clk 0:00:52]} 27. Bf1 {[%clk 0:00:42]}  Nb6 {[%clk 0:00:51]} 28. a4 {[%clk 0:00:36]}  Rb3 {[%clk 0:00:45]} 29. a5 {[%clk 0:00:35]}  Na4 {[%clk 0:00:44]} 30. a6 {[%clk 0:00:32]}  Nxc3 {[%clk 0:00:41]} 31. g5 {[%clk 0:00:26]}  Nh5 {[%clk 0:00:40]} 32. Rb7 {[%clk 0:00:24]}  Ra3 {[%clk 0:00:38]} 33. a7 {[%clk 0:00:22]}  Kg7 {[%clk 0:00:39]} 34. Kf2 {[%clk 0:00:18]}  Nxf4 {[%clk 0:00:38]} 35. Kg3 {[%clk 0:00:18]}  Nd3 {[%clk 0:00:37]} 36. h4 {[%clk 0:00:16]}  Nb4 {[%clk 0:00:36]} 37. h5 {[%clk 0:00:15]}  gxh5 {[%clk 0:00:34]} 38. g6 {[%clk 0:00:15]}  Kxg6 {[%clk 0:00:34]} 39. Bh3 {[%clk 0:00:15]}  Nc6 {[%clk 0:00:32]} 40. a8=Q {[%clk 0:00:09]}  Rxa8 {[%clk 0:00:31]} 0-1


[Site "https://www.chess.com"]

[Event "Titled Tuesday Blitz May 16 Late 2023"]
[White "Schut, Han"]
[Black "Qiao, Cindy"]
[WhiteFideId "1005561"]
[BlackFideId "2620243"]
[WhiteElo "2024"]
[BlackElo "1777"]
[Result "1-0"]
[Round "03"]
[TimeControl "180+2"]
[Date "2023.05.16"]
[WhiteClock "0:00:25"]
[BlackClock "0:00:12"]

1. e4 {[%clk 0:02:58]}  c5 {[%clk 0:02:59]} 2. Nf3 {[%clk 0:02:58]}  d6 {[%clk 0:03:00]} 3. d4 {[%clk 0:02:58]}  cxd4 {[%clk 0:03:00]} 4. Nxd4 {[%clk 0:02:59]}  Nf6 {[%clk 0:03:01]} 5. f3 {[%clk 0:02:59]}  e5 {[%clk 0:02:57]} 6. Bb5+ {[%clk 0:03:00]}  Nbd7 {[%clk 0:02:48]} 7. Nf5 {[%clk 0:02:59]}  Qb6 {[%clk 0:02:42]} 8. c4 {[%clk 0:02:58]}  a6 {[%clk 0:02:40]} 9. Bxd7+ {[%clk 0:02:53]}  Bxd7 {[%clk 0:02:41]} 10. Ne3 {[%clk 0:02:53]}  Rc8 {[%clk 0:02:35]} 11. Nc3 {[%clk 0:02:53]}  Be6 {[%clk 0:02:28]} 12. b3 {[%clk 0:02:52]}  Be7 {[%clk 0:02:27]} 13. O-O {[%clk 0:02:50]}  O-O {[%clk 0:02:25]} 14. Kh1 {[%clk 0:02:50]}  Rfd8 {[%clk 0:02:22]} 15. Qd3 {[%clk 0:02:36]}  Qc5 {[%clk 0:02:10]} 16. a4 {[%clk 0:02:28]}  Rd7 {[%clk 0:01:53]} 17. Rd1 {[%clk 0:02:26]}  Qb6 {[%clk 0:01:48]} 18. Qc2 {[%clk 0:02:20]}  Qc7 {[%clk 0:01:42]} 19. a5 {[%clk 0:02:09]}  Bd8 {[%clk 0:01:13]} 20. Qd2 {[%clk 0:02:07]}  b5 {[%clk 0:01:07]} 21. Ncd5 {[%clk 0:01:55]}  Bxd5 {[%clk 0:01:05]} 22. cxd5 {[%clk 0:01:55]}  Qc3 {[%clk 0:01:01]} 23. b4 {[%clk 0:01:43]}  Rdc7 {[%clk 0:00:53]} 24. Nf5 {[%clk 0:01:38]}  Qxd2 {[%clk 0:00:46]} 25. Bxd2 {[%clk 0:01:37]}  Ne8 {[%clk 0:00:47]} 26. Rac1 {[%clk 0:01:31]}  g6 {[%clk 0:00:44]} 27. Nh6+ {[%clk 0:01:23]}  Kg7 {[%clk 0:00:45]} 28. Rxc7 {[%clk 0:01:23]}  Rxc7 {[%clk 0:00:45]} 29. Rc1 {[%clk 0:01:23]}  Rxc1+ {[%clk 0:00:41]} 30. Bxc1 {[%clk 0:01:24]}  Nf6 {[%clk 0:00:37]} 31. h3 {[%clk 0:01:23]}  Nh5 {[%clk 0:00:35]} 32. Ng4 {[%clk 0:01:06]}  Ng3+ {[%clk 0:00:33]} 33. Kh2 {[%clk 0:01:05]}  Ne2 {[%clk 0:00:34]} 34. Bd2 {[%clk 0:01:04]}  Bh4 {[%clk 0:00:29]} 35. Ne3 {[%clk 0:00:53]}  Bg3+ {[%clk 0:00:22]} 36. Kh1 {[%clk 0:00:53]}  Bf4 {[%clk 0:00:23]} 37. Nf1 {[%clk 0:00:52]}  f5 {[%clk 0:00:19]} 38. Bxf4 {[%clk 0:00:46]}  Nxf4 {[%clk 0:00:20]} 39. exf5 {[%clk 0:00:45]}  gxf5 {[%clk 0:00:20]} 40. Ne3 {[%clk 0:00:46]}  Kf6 {[%clk 0:00:19]} 41. g3 {[%clk 0:00:42]}  Nd3 {[%clk 0:00:20]} 42. Nc2 {[%clk 0:00:42]}  e4 {[%clk 0:00:20]} 43. fxe4 {[%clk 0:00:42]}  fxe4 {[%clk 0:00:21]} 44. Kg1 {[%clk 0:00:43]}  Ke5 {[%clk 0:00:21]} 45. g4 {[%clk 0:00:32]}  Kxd5 {[%clk 0:00:22]} 46. Kg2 {[%clk 0:00:32]}  Ke5 {[%clk 0:00:22]} 47. Kg3 {[%clk 0:00:32]}  d5 {[%clk 0:00:22]} 48. h4 {[%clk 0:00:32]}  d4 {[%clk 0:00:22]} 49. g5 {[%clk 0:00:31]}  Kf5 {[%clk 0:00:21]} 50. Nxd4+ {[%clk 0:00:31]}  Ke5 {[%clk 0:00:21]} 51. Nxb5 {[%clk 0:00:31]}  Nxb4 {[%clk 0:00:20]} 52. Nc7 {[%clk 0:00:30]}  e3 {[%clk 0:00:18]} 53. Kf3 {[%clk 0:00:30]}  Kd4 {[%clk 0:00:18]} 54. h5 {[%clk 0:00:28]}  Kd3 {[%clk 0:00:18]} 55. Ne6 {[%clk 0:00:25]}  Nd5 {[%clk 0:00:16]} 56. Nc5+ {[%clk 0:00:23]}  Kd2 {[%clk 0:00:15]} 57. Nb3+ {[%clk 0:00:21]}  Kd3 {[%clk 0:00:13]} 58. g6 {[%clk 0:00:21]}  hxg6 {[%clk 0:00:13]} 59. hxg6 {[%clk 0:00:22]}  e2 {[%clk 0:00:13]} 60. Nc1+ {[%clk 0:00:22]}  Kd2 {[%clk 0:00:13]} 61. Nxe2 {[%clk 0:00:23]}  Kd3 {[%clk 0:00:12]} 62. Nf4+ {[%clk 0:00:23]}  Kd4 {[%clk 0:00:12]} 63. Nxd5 {[%clk 0:00:24]}  Kxd5 {[%clk 0:00:12]} 64. g7 {[%clk 0:00:25]} 1-0


[Site "https://www.chess.com"]

[Event "Titled Tuesday Blitz May 16 Late 2023"]
[White "K2JW"]
[Black "Andreassen, Lars"]
[BlackFideId "1504878"]
[WhiteElo "2384"]
[BlackElo "2119"]
[Result "1/2-1/2"]
[Round "03"]
[TimeControl "180+2"]
[Date "2023.05.16"]
[WhiteClock "0:01:12"]
[BlackClock "0:00:53"]

1. d4 {[%clk 0:02:53]}  d5 {[%clk 0:02:59]} 2. c4 {[%clk 0:02:52]}  e6 {[%clk 0:02:59]} 3. Nf3 {[%clk 0:02:51]}  c5 {[%clk 0:02:59]} 4. cxd5 {[%clk 0:02:48]}  cxd4 {[%clk 0:02:58]} 5. dxe6 {[%clk 0:02:31]}  Bxe6 {[%clk 0:02:57]} 6. Qxd4 {[%clk 0:02:31]}  Nd7 {[%clk 0:02:56]} 7. Nc3 {[%clk 0:02:18]}  Ngf6 {[%clk 0:02:55]} 8. e4 {[%clk 0:01:44]}  Bc5 {[%clk 0:02:53]} 9. Qd1 {[%clk 0:01:42]}  Qb6 {[%clk 0:02:52]} 10. Na4 {[%clk 0:01:32]}  Bxf2+ {[%clk 0:02:49]} 11. Ke2 {[%clk 0:01:32]}  Bc4+ {[%clk 0:02:47]} 12. Kd2 {[%clk 0:01:30]}  Nxe4+ {[%clk 0:02:08]} 13. Kc2 {[%clk 0:01:25]}  Qc6 {[%clk 0:02:01]} 14. Nc3 {[%clk 0:01:22]}  Nxc3 {[%clk 0:01:54]} 15. bxc3 {[%clk 0:01:16]}  Qa4+ {[%clk 0:01:50]} 16. Kd2 {[%clk 0:01:12]}  Be3+ {[%clk 0:01:44]} 17. Ke1 {[%clk 0:01:12]}  Bf2+ {[%clk 0:01:39]} 18. Kd2 {[%clk 0:01:12]}  Be3+ {[%clk 0:01:02]} 19. Ke1 {[%clk 0:01:11]}  Bf2+ {[%clk 0:00:53]} 20. Kd2 {[%clk 0:01:12]} 1/2-1/2


[Site "https://www.chess.com"]